bitfinex-derivatives/quotes_BTCF0:USTF0_20250716
["timestamp","ask_amount","ask_price","bid_price","bid_amount"]
[1752673470203,0.71409455,118390.0,118380.0,1.17242]
[1752673470509,0.71409455,118390.0,118380.0,1.79914]
[1752673470704,0.71409455,118390.0,118380.0,1.79898]
[1752673471005,0.71409455,118390.0,118380.0,1.17242]
[1752673471202,0.71609455,118390.0,118380.0,1.17342]
[1752673471705,0.71409455,118390.0,118380.0,1.79862]
[1752673471911,0.71509455,118390.0,118380.0,1.79962]
[1752673472105,0.1689234,118380.0,118370.0,0.0002]
[1752673472409,0.71410985,118380.0,118370.0,0.6262]
[1752673473020,0.71410985,118380.0,118370.0,0.7951367]
[1752673473217,0.71410985,118380.0,118370.0,0.6262]
[1752673473508,0.1689234,118380.0,118370.0,0.7951367]
[1752673473914,0.71410985,118380.0,118370.0,0.7951367]
[1752673474604,0.71510985,118380.0,118370.0,0.7961367]
[1752673475810,0.1699234,118380.0,118370.0,0.7961367]
[1752673476109,0.71510985,118380.0,118370.0,0.7961367]
[1752673476910,0.1699234,118380.0,118370.0,0.7961367]
[1752673478810,0.001,118380.0,118370.0,1.34132315]
[1752673479804,0.001,118380.0,118370.0,1.44132315]
[1752673480009,0.2111272,118400.0,118390.0,0.1689088]
[1752673480212,0.2111272,118400.0,118390.0,0.7925088]
[1752673480412,0.1689033,118400.0,118390.0,0.7925088]
[1752673480612,0.2533358,118410.0,118400.0,0.1688945]
[1752673481013,0.2111134,118410.0,118400.0,0.1688945]
[1752673481214,0.2111134,118410.0,118400.0,0.71408095]
[1752673481215,0.168892,118410.0,118400.0,0.71408095]
[1752673481512,0.2110893,118420.0,118410.0,0.1688803]
[1752673481710,0.1688728,118420.0,118410.0,0.7924403]
[1752673482614,0.2955074,118430.0,118420.0,0.168866]
[1752673484013,0.168866,118420.0,118410.0,0.0012]
[1752673484215,0.1688803,118410.0,118400.0,0.2535344]
[1752673484417,0.71406675,118410.0,118400.0,0.8762144]
[1752673484620,0.71406675,118410.0,118400.0,0.8339913]
[1752673485220,0.1688803,118410.0,118400.0,0.8339913]
[1752673485415,0.1688803,118410.0,118390.0,1.48865108]
[1752673485416,0.1688945,118400.0,118390.0,1.48865108]
[1752673485723,0.71408095,118400.0,118390.0,1.7904]
[1752673486020,0.1688945,118400.0,118390.0,1.9593087]
[1752673487323,0.1698945,118400.0,118390.0,1.9513087]
[1752673487821,0.1688945,118400.0,118390.0,1.9493087]
[1752673488021,0.1698945,118400.0,118390.0,1.7814]
[1752673489223,0.1698945,118400.0,118390.0,1.9503086]
[1752673490223,0.001,118400.0,118390.0,2.49549505]
[1752673490424,0.1698946,118400.0,118390.0,2.49549505]
[1752673490723,0.1698946,118400.0,118390.0,2.63569505]
[1752673490921,0.1698946,118400.0,118390.0,2.49549505]
[1752673492124,0.001,118400.0,118390.0,2.49549505]
[1752673492324,0.1698947,118400.0,118390.0,2.49549505]
[1752673493424,0.1698947,118400.0,118390.0,1.9503086]
[1752673495420,0.001,118400.0,118390.0,2.49549505]
[1752673496522,0.1698947,118400.0,118390.0,2.49549505]
[1752673496928,0.1688947,118400.0,118390.0,1.9493086]
[1752673497225,0.1698947,118400.0,118390.0,1.9513086]
[1752673497824,0.1698947,118400.0,118390.0,1.7796]
[1752673498028,0.1698947,118400.0,118390.0,1.9485086]
[1752673500928,0.1698947,118400.0,118390.0,1.952729]
[1752673501627,0.71508115,118400.0,118390.0,1.78402]
[1752673501825,0.71508115,118400.0,118390.0,0.00622]
[1752673502026,0.72508115,118400.0,118390.0,0.62798]
[1752673502629,1.22508115,118400.0,118390.0,0.62798]
[1752673503817,0.6798947,118400.0,118390.0,0.62798]
[1752673504229,1.22508115,118400.0,118390.0,0.62798]
[1752673504431,1.22508115,118400.0,118390.0,0.175129]
[1752673504627,0.6798947,118400.0,118390.0,1.34151545]
[1752673504828,0.6798947,118400.0,118390.0,0.796329]
[1752673505429,0.1798947,118400.0,118390.0,0.796329]
[1752673505629,0.1798947,118400.0,118390.0,0.00622]
[1752673505832,0.72508115,118400.0,118390.0,0.796169]
[1752673506029,0.72508115,118400.0,118390.0,0.62726]
[1752673506232,0.72508115,118400.0,118390.0,0.796169]
[1752673506432,0.1798947,118400.0,118390.0,0.796169]
[1752673509131,1.2602676,118400.0,118390.0,0.00622]
[1752673509325,0.1689094,118390.0,118380.0,0.0002]
[1752673509524,0.1689665,118350.0,118340.0,0.03024551]
[1752673509731,0.71415295,118350.0,118340.0,0.81986631]
[1752673509931,0.1689665,118350.0,118340.0,0.7896208]
[1752673510133,0.1689556,118360.0,118350.0,0.1689665]
[1752673510434,0.2534229,118370.0,118360.0,0.1689522]
[1752673511231,0.2534229,118370.0,118360.0,0.7897522]
[1752673512133,0.2534229,118370.0,118360.0,0.7896722]
[1752673512637,0.1689499,118370.0,118360.0,1.33485865]
[1752673512839,0.1699499,118370.0,118360.0,1.33585865]
[1752673513726,0.1699499,118370.0,118360.0,0.7906722]
[1752673513925,0.1699499,118370.0,118360.0,1.33585865]
[1752673514331,0.001,118370.0,118360.0,1.33585865]
[1752673514639,0.2111495,118390.0,118380.0,0.1689236]
[1752673514826,0.2955867,118400.0,118390.0,0.1689094]
[1752673515029,0.1689094,118390.0,118380.0,1.41931525]
[1752673515230,0.1689094,118390.0,118380.0,0.2111402]
[1752673515435,0.1689094,118390.0,118380.0,0.8319002]
[1752673516734,0.1729094,118390.0,118380.0,0.8329002]
[1752673517436,0.1729094,118390.0,118380.0,1.37808665]
[1752673518337,0.004,118390.0,118380.0,1.37724665]
[1752673518941,0.004,118390.0,118380.0,1.47724665]
[1752673519534,0.004,118390.0,118380.0,1.37724665]
[1752673519734,0.004,118390.0,118380.0,1.47724665]
[1752673520239,0.2533371,118410.0,118400.0,0.1688954]
[1752673520440,0.2533371,118410.0,118400.0,0.7886554]
[1752673520740,0.2533161,118420.0,118410.0,0.1688812]
[1752673520934,0.2533161,118420.0,118410.0,0.71406765]
[1752673521130,0.2533161,118420.0,118410.0,0.1688812]
[1752673521538,0.1688669,118420.0,118410.0,0.79850275]
[1752673521740,0.1688669,118420.0,118410.0,0.84072225]
[1752673521938,0.1688669,118420.0,118410.0,1.45972225]
[1752673522133,0.1688669,118420.0,118410.0,1.41750275]
[1752673522345,0.2532937,118430.0,118420.0,0.1688669]
[1752673522538,0.1688666,118420.0,118410.0,1.41749055]
[1752673523441,0.1698666,118420.0,118410.0,1.41749055]
[1752673525142,0.1698666,118420.0,118410.0,0.8723041]
[1752673525343,0.1698666,118420.0,118410.0,1.41749055]
[1752673526440,0.1698666,118420.0,118410.0,1.51749055]
[1752673526642,0.001,118420.0,118410.0,1.51749055]
[1752673526838,0.2532711,118440.0,118430.0,0.1688526]
[1752673527144,0.2532533,118450.0,118440.0,0.1688384]
[1752673527340,0.3432533,118450.0,118440.0,0.1688384]
[1752673527541,0.2532533,118450.0,118440.0,0.1688384]
[1752673528343,0.2532533,118450.0,118440.0,0.17709315]
[1752673528944,0.1728384,118440.0,118430.0,0.0012]
[1752673529247,0.71802485,118440.0,118430.0,0.6186]
[1752673529448,0.71402485,118440.0,118430.0,0.6176]
[1752673529945,0.71402485,118440.0,118420.0,0.1690669]
[1752673529946,0.1688526,118430.0,118420.0,0.1690669]
[1752673530138,0.1688526,118430.0,118420.0,0.1688669]
[1752673530341,0.1688526,118430.0,118420.0,0.7864669]
[1752673531037,0.1688526,118430.0,118420.0,1.33165335]
[1752673531841,0.1688526,118430.0,118420.0,0.7864669]
[1752673532749,0.1718526,118430.0,118420.0,0.7864669]
[1752673533151,0.1718526,118430.0,118420.0,1.16278645]
[1752673533352,0.1718526,118430.0,118420.0,0.7864669]
[1752673533753,0.1698526,118430.0,118420.0,0.7864669]
[1752673533952,0.1698526,118430.0,118420.0,0.79498379]
[1752673535654,0.001,118430.0,118420.0,1.34017024]
[1752673535950,0.001,118430.0,118420.0,1.44017024]
[1752673538555,0.001,118430.0,118420.0,1.44439024]
[1752673541855,0.2532591,118440.0,118430.0,0.1688526]
[1752673542056,0.2532591,118440.0,118430.0,0.71403905]
[1752673542558,0.1688393,118440.0,118430.0,0.71403905]
[1752673542759,0.1688393,118440.0,118430.0,0.1688526]
[1752673542960,0.1688393,118440.0,118430.0,0.71403905]
[1752673543260,0.2532921,118450.0,118440.0,0.1688383]
[1752673543459,4e-05,118450.0,118440.0,1.33142475]
[1752673545257,0.0422479,118450.0,118430.0,0.1690385]
[1752673545462,1.15846775,118450.0,118440.0,0.61736]
[1752673545763,0.1688385,118440.0,118430.0,0.00442]
[1752673545955,1.0523891,118440.0,118430.0,1e-08]
[1752673546160,1.4712611,118440.0,118430.0,1e-08]
[1752673546356,0.1688528,118430.0,118420.0,0.0002]
[1752673546663,0.168867,118420.0,118410.0,0.0002]
[1752673546860,0.1688813,118410.0,118400.0,0.61752]
[1752673547059,0.71406775,118410.0,118400.0,0.61732]
[1752673547363,0.1688956,118400.0,118390.0,0.0002]
[1752673547560,0.1689098,118390.0,118380.0,0.25368213]
[1752673547762,0.1689098,118390.0,118380.0,0.87080213]
[1752673548063,0.1689098,118390.0,118380.0,1.42871431]
[1752673548562,0.1689098,118390.0,118380.0,0.88352786]
[1752673548864,0.1689098,118390.0,118380.0,0.87930786]
[1752673549160,0.1689098,118390.0,118380.0,0.00860766]
[1752673549364,0.71409625,118390.0,118380.0,0.62038193]
[1752673549560,0.71409625,118390.0,118380.0,0.00310193]
[1752673549761,0.71409625,118390.0,118380.0,0.62046193]
[1752673550362,0.71409625,118390.0,118380.0,0.00310193]
[1752673550665,0.71409625,118390.0,118380.0,0.62042193]
[1752673551065,1.19304025,118390.0,118380.0,0.62042193]
[1752673551558,0.1689241,118380.0,118370.0,0.00442]
[1752673551757,0.1689241,118380.0,118370.0,0.00422]
[1752673551758,1.06411055,118380.0,118370.0,0.00422]
[1752673551956,1.37427641,118380.0,118360.0,0.0002]
[1752673552160,0.1689526,118360.0,118350.0,0.61752]
[1752673552466,0.1689669,118350.0,118340.0,0.0002]
[1752673552661,0.1689812,118340.0,118330.0,0.18088172]
[1752673552860,0.1689812,118340.0,118330.0,0.79808172]
[1752673553368,0.1689732,118350.0,118340.0,0.1689812]
[1752673553564,0.2534264,118370.0,118360.0,0.1689526]
[1752673553866,0.1689526,118360.0,118350.0,0.1691565]
[1752673554066,0.1689526,118360.0,118350.0,0.7863565]
[1752673554365,0.1689669,118350.0,118340.0,0.2536568]
[1752673554561,0.1689669,118350.0,118340.0,0.8708168]
[1752673554966,0.1689669,118350.0,118340.0,1.41600325]
[1752673555367,0.2534419,118360.0,118350.0,0.1689669]
[1752673555764,0.2112008,118360.0,118350.0,0.1689669]
[1752673555965,0.2534222,118370.0,118360.0,0.1689526]
[1752673556164,0.2634222,118370.0,118360.0,0.7863926]
[1752673556364,0.2211846,118370.0,118360.0,0.7863926]
[1752673556566,0.01,118370.0,118360.0,0.7863926]
[1752673556766,0.084464,118380.0,118370.0,0.1689383]
[1752673556767,0.2533997,118380.0,118370.0,0.1689383]
[1752673557162,0.1689357,118380.0,118370.0,0.1689383]
[1752673557360,0.2111467,118390.0,118380.0,0.1689241]
[1752673557566,0.2111467,118390.0,118380.0,1.33155055]
[1752673558272,0.2111467,118390.0,118380.0,0.7863641]
[1752673560065,0.2111467,118390.0,118380.0,1.33155055]
[1752673560969,0.2533528,118400.0,118390.0,0.1689099]
[1752673561169,0.2533528,118400.0,118390.0,0.71409635]
[1752673561170,0.168902,118400.0,118390.0,0.71409635]
[1752673561366,0.2533383,118410.0,118400.0,0.1688956]
[1752673561567,0.2533383,118410.0,118400.0,1.33156205]
[1752673562274,0.1688929,118410.0,118400.0,1.33156205]
[1752673562669,0.2533166,118420.0,118410.0,0.1688818]
[1752673563375,0.211062,118440.0,118430.0,0.1688532]
[1752673563570,0.211062,118440.0,118430.0,1.33147965]
[1752673563767,0.341062,118440.0,118430.0,0.7862932]
[1752673564664,0.1688533,118430.0,118420.0,0.71425095]
[1752673564868,0.1688675,118420.0,118410.0,0.2112892]
[1752673565062,0.1688675,118420.0,118410.0,0.8284892]
[1752673565268,0.1688675,118420.0,118410.0,0.8327092]
[1752673565669,0.2955157,118430.0,118420.0,0.1688675]
[1752673566074,0.1688675,118420.0,118410.0,0.00442]
[1752673566273,0.1688675,118420.0,118410.0,0.7905018]
[1752673566576,0.2110811,118430.0,118420.0,0.1688675]
[1752673566872,0.2160626,118440.0,118430.0,0.1688533]
[1752673567069,0.263839,118440.0,118430.0,1.33143975]
[1752673567268,0.258839,118440.0,118430.0,1.33143975]
[1752673567465,0.258839,118440.0,118430.0,0.7862533]
[1752673568071,0.258839,118440.0,118430.0,1.33143975]
[1752673568272,0.261839,118440.0,118430.0,1.33243975]
[1752673568480,1.09702545,118440.0,118430.0,0.001]
[1752673568677,1.09702545,118440.0,118430.0,0.61836]
[1752673568873,0.1688532,118430.0,118420.0,0.00442]
[1752673569183,1.08403965,118430.0,118420.0,0.62154]
[1752673569379,0.1688674,118420.0,118410.0,0.61752]
[1752673569574,0.1688674,118420.0,118410.0,0.61732]
[1752673569575,1.03405385,118420.0,118410.0,0.61732]
[1752673569779,1.00405385,118420.0,118410.0,0.7862018]
[1752673569976,0.1388674,118420.0,118410.0,0.1688818]
[1752673570182,0.5188674,118420.0,118410.0,0.7862018]
[1752673570683,0.1388674,118420.0,118410.0,0.7862018]
[1752673571383,0.1418674,118420.0,118410.0,0.7872018]
[1752673572484,0.003,118420.0,118410.0,1.33238825]
[1752673572678,0.003,118420.0,118410.0,1.43238825]
[1752673573880,0.2110576,118440.0,118430.0,0.1688532]
[1752673574080,0.2110576,118440.0,118430.0,1.33131965]
[1752673574477,0.1688477,118440.0,118430.0,1.33131965]
[1752673574789,0.2532927,118450.0,118440.0,0.1688389]
[1752673575086,0.3288761,118450.0,118440.0,0.71402535]
[1752673575282,0.16004,118450.0,118440.0,0.71402535]
[1752673575783,0.1688647,118450.0,118440.0,0.71402535]
[1752673576090,0.1688647,118450.0,118440.0,0.1688389]
[1752673576695,0.1688647,118450.0,118440.0,0.71402535]
[1752673576890,0.1688647,118450.0,118440.0,0.54518645]
[1752673577093,0.168839,118440.0,118430.0,0.0002]
[1752673577393,0.1688533,118430.0,118420.0,1.16776]
[1752673577589,0.1688533,118430.0,118420.0,1.9536275]
[1752673577784,0.1688533,118430.0,118420.0,1.78476]
[1752673577785,0.5288533,118430.0,118420.0,1.78476]
[1752673578090,0.1688533,118430.0,118420.0,1.9536275]
[1752673578896,0.1688533,118430.0,118420.0,2.50303395]
[1752673579098,0.1688533,118430.0,118420.0,1.9578475]
[1752673579593,0.1688533,118430.0,118420.0,1.78898]
[1752673579799,1.06403975,118430.0,118420.0,1.78898]
[1752673580093,1.06503975,118430.0,118420.0,0.62138]
[1752673581600,1.06903975,118430.0,118420.0,0.62238]
[1752673582298,1.06903975,118430.0,118420.0,0.00522]
[1752673584693,0.5238533,118430.0,118420.0,0.00522]
[1752673584891,0.5238533,118430.0,118420.0,0.1740875]
[1752673585291,0.5238533,118430.0,118420.0,0.00522]
[1752673586493,0.5238533,118430.0,118420.0,0.62238]
[1752673586494,1.06903975,118430.0,118420.0,0.62238]
[1752673587089,0.5238533,118430.0,118420.0,0.62238]
[1752673587503,1.0238533,118430.0,118420.0,0.62238]
[1752673588000,1.0238533,118430.0,118420.0,0.7912475]
[1752673588301,1.0238533,118430.0,118420.0,0.62238]
[1752673588704,1.0238533,118430.0,118420.0,0.7912475]
[1752673588897,0.5238533,118430.0,118420.0,0.7912475]
[1752673589097,0.5238533,118430.0,118420.0,1.33643395]
[1752673589698,0.5228533,118430.0,118420.0,1.33643395]
[1752673589897,0.5228533,118430.0,118420.0,0.7912475]
[1752673590204,0.5228533,118430.0,118420.0,0.7870275]
[1752673590400,0.5228533,118430.0,118420.0,0.001]
[1752673590600,0.1688675,118420.0,118410.0,0.0002]
[1752673590805,1.15071295,118420.0,118410.0,0.61712]
[1752673591505,0.6055265,118420.0,118410.0,0.7902217]
[1752673591809,1.15071295,118420.0,118410.0,0.62134]
[1752673592104,0.6055265,118420.0,118410.0,0.7902217]
[1752673592306,0.6055265,118420.0,118410.0,0.62134]
[1752673592602,0.6055265,118420.0,118410.0,0.7902217]
[1752673592801,0.5633066,118420.0,118410.0,0.7902217]
[1752673593198,0.5643066,118420.0,118410.0,0.7902217]
[1752673595110,0.4798675,118420.0,118410.0,1.33540815]
[1752673596503,0.001,118420.0,118410.0,1.33540815]
[1752673596708,0.06013796,118440.0,118430.0,0.2954873]
[1752673597004,0.1688532,118430.0,118420.0,0.0002]
[1752673597207,1.20068785,118430.0,118420.0,0.617]
[1752673597405,1.24290415,118430.0,118420.0,0.7858675]
[1752673597705,0.6555014,118430.0,118420.0,0.7858675]
[1752673598905,0.6555014,118430.0,118420.0,0.617]
[1752673599103,0.1688675,118420.0,118410.0,0.1732959]
[1752673599309,0.1688675,118420.0,118410.0,0.7900959]
[1752673599807,0.5488675,118420.0,118410.0,0.7900959]
[1752673600005,0.1688675,118420.0,118410.0,0.1730959]
[1752673600201,0.1688675,118420.0,118410.0,0.7910559]
[1752673600502,0.1688675,118420.0,118410.0,0.1740959]
[1752673600708,0.1688675,118420.0,118410.0,0.7910559]
[1752673601308,0.1688675,118420.0,118410.0,0.00522]
[1752673601513,0.1688675,118420.0,118410.0,0.7910618]
[1752673601813,1.08405395,118420.0,118410.0,0.62214]
[1752673602009,1.08405395,118420.0,118410.0,0.7910218]
[1752673602201,1.08405395,118420.0,118410.0,0.62214]
[1752673602399,0.5388675,118420.0,118410.0,0.62214]
[1752673602803,0.5418675,118420.0,118410.0,0.00522]
[1752673603006,1.14719191,118420.0,118410.0,0.62214]
[1752673604111,1.14719191,118420.0,118410.0,0.00522]
[1752673604309,1.25594995,118420.0,118410.0,0.00522]
[1752673604704,0.1688818,118410.0,118400.0,0.0002]
[1752673604911,0.168896,118400.0,118390.0,0.0002]
[1752673605210,0.1689103,118390.0,118380.0,0.61708]
[1752673605404,0.5389103,118390.0,118380.0,0.7858046]
[1752673605808,0.1689246,118380.0,118370.0,1.3366189]
[1752673606008,0.1689246,118380.0,118370.0,1.9533389]
[1752673606307,0.1689246,118380.0,118370.0,1.9575589]
[1752673607012,0.1689246,118380.0,118370.0,1.9533389]
[1752673607313,0.1699246,118380.0,118370.0,1.9533389]
[1752673607520,0.001,118380.0,118370.0,2.56575948]
[1752673608113,0.2111321,118400.0,118390.0,0.1689103]
[1752673608311,0.2111321,118400.0,118390.0,1.33097675]
[1752673608813,0.1689079,118400.0,118390.0,1.33097675]
[1752673609013,0.2955602,118410.0,118400.0,0.168896]
[1752673609213,0.2211147,118410.0,118400.0,0.168896]
[1752673609714,0.2211147,118410.0,118400.0,0.71408245]
[1752673610212,0.1688932,118410.0,118400.0,0.71408245]
[1752673611114,0.253318,118420.0,118410.0,0.1688815]
[1752673611309,0.613318,118420.0,118410.0,1.33094795]
[1752673611714,0.613318,118420.0,118410.0,0.7857615]
[1752673613420,0.614318,118420.0,118410.0,0.7857615]
[1752673613719,0.5298805,118420.0,118410.0,1.33094795]
[1752673614217,0.5298805,118420.0,118410.0,0.7857615]
[1752673615219,0.1688815,118410.0,118400.0,0.2535274]
[1752673615418,0.1688815,118410.0,118400.0,0.8701274]
[1752673616218,0.1688815,118410.0,118400.0,1.41531385]
[1752673617215,0.1698815,118410.0,118400.0,1.41531385]
[1752673617721,0.001,118410.0,118400.0,1.41531385]
[1752673618418,0.1688771,118420.0,118410.0,0.1688815]
[1752673618620,0.5488771,118420.0,118410.0,0.71406795]
[1752673618921,0.38,118420.0,118410.0,0.71406795]
[1752673619110,0.5488672,118420.0,118410.0,0.71406795]
[1752673619419,0.38,118420.0,118410.0,0.71406795]
[1752673620017,0.2532942,118430.0,118420.0,0.1688672]
[1752673620213,0.5632942,118430.0,118420.0,1.33073365]
[1752673620519,0.5632942,118430.0,118420.0,0.7855472]
[1752673620923,0.5632942,118430.0,118410.0,0.2535053]
[1752673620924,0.1688672,118420.0,118410.0,0.2535053]
[1752673621113,0.1688672,118420.0,118410.0,0.8699453]
[1752673621514,0.1688672,118420.0,118410.0,1.41513175]
[1752673621720,0.1698672,118420.0,118410.0,1.41513175]
[1752673622022,0.1698672,118420.0,118410.0,0.8699453]
[1752673622417,0.1688672,118420.0,118410.0,0.8709453]
[1752673623721,0.1688672,118420.0,118410.0,1.41613175]
[1752673625716,0.1688672,118420.0,118410.0,0.8287273]
[1752673626315,0.1688672,118420.0,118410.0,0.001]
[1752673626517,1.03405365,118420.0,118410.0,0.001]
[1752673626713,1.03405365,118420.0,118410.0,0.61748]
[1752673627117,1.03405365,118420.0,118410.0,0.61744]
[1752673628122,1.03805365,118420.0,118410.0,0.61744]
[1752673629122,1.03605365,118420.0,118410.0,0.61644]
[1752673629322,0.4908672,118420.0,118410.0,0.7853215]
[1752673631420,0.4908672,118420.0,118410.0,1.33050795]
[1752673632536,0.4888672,118420.0,118410.0,1.33050795]
[1752673632725,0.4898672,118420.0,118410.0,1.33050795]
[1752673634723,0.321,118420.0,118410.0,1.33050795]
[1752673634923,0.2110585,118440.0,118430.0,0.1688529]
[1752673635125,0.2110585,118440.0,118430.0,1.33031935]
[1752673635731,0.1688529,118430.0,118420.0,0.84088505]
[1752673635932,0.1688529,118430.0,118420.0,0.8273482]
[1752673636127,0.1688672,118420.0,118410.0,0.2112887]
[1752673636320,0.1688672,118420.0,118410.0,0.61624]
[1752673636519,0.1688672,118420.0,118410.0,0.7851214]
[1752673636828,0.1688814,118410.0,118400.0,0.2113094]
[1752673637023,0.1688814,118410.0,118400.0,0.8273494]
[1752673637720,0.1688814,118410.0,118400.0,0.7851357]
[1752673638230,0.1688814,118410.0,118400.0,0.7893557]
[1752673638429,0.1688814,118410.0,118400.0,1.33454215]
[1752673639227,0.2110925,118420.0,118410.0,0.1688815]
[1752673639427,0.1688748,118420.0,118410.0,0.71406795]
[1752673642130,0.1688748,118420.0,118410.0,0.7849615]
[1752673645931,0.1688748,118420.0,118410.0,1.33014795]
[1752673646538,0.2955083,118430.0,118420.0,0.1688672]
[1752673646734,0.6455083,118430.0,118420.0,0.1688672]
[1752673647634,0.5610777,118430.0,118420.0,0.71405365]
[1752673648438,0.5610777,118430.0,118420.0,0.71827365]
[1752673648838,0.5610777,118430.0,118420.0,0.1730872]
[1752673649039,0.5610777,118430.0,118420.0,0.00422]
[1752673649245,0.5610777,118430.0,118420.0,0.1730872]
[1752673649445,0.5610777,118430.0,118420.0,0.00422]
[1752673649637,1.10626415,118430.0,118420.0,0.6201]
[1752673651234,0.5610777,118430.0,118420.0,0.7889672]
[1752673652035,0.62151656,118430.0,118420.0,0.7889672]
[1752673653342,0.5610777,118430.0,118420.0,0.7889672]
[1752673653742,0.62151656,118430.0,118420.0,0.7889672]
[1752673653943,0.57930306,118430.0,118420.0,1.33415365]
[1752673654143,0.518853,118430.0,118420.0,1.33415365]
[1752673654948,0.35,118430.0,118420.0,1.33415365]
[1752673655247,0.518853,118430.0,118420.0,1.33515365]
[1752673655446,0.35,118430.0,118420.0,1.33515365]
[1752673655649,0.35592546,118440.0,118430.0,0.168853]
[1752673656352,0.31371276,118440.0,118430.0,0.168853]
[1752673656850,0.2532739,118440.0,118430.0,0.168853]
[1752673657244,0.2532739,118440.0,118430.0,0.17744103]
[1752673657552,0.2532739,118440.0,118430.0,0.18166103]
[1752673657746,0.1688501,118440.0,118430.0,0.72684748]
[1752673657949,0.27152126,118450.0,118440.0,0.1688387]
[1752673658250,0.30152126,118450.0,118440.0,0.7844387]
[1752673658450,0.25930326,118450.0,118440.0,1.32962515]
[1752673658645,0.1688644,118450.0,118440.0,1.32962515]
[1752673658847,4e-05,118450.0,118440.0,1.32962515]
[1752673659446,0.00204,118450.0,118440.0,1.32962515]
[1752673659749,0.00204,118450.0,118440.0,1.39772846]
[1752673659945,0.1708644,118450.0,118440.0,1.39772846]
[1752673660152,0.00204,118450.0,118440.0,1.39772846]
[1752673660347,0.2109981,118470.0,118460.0,0.1688102]
[1752673660549,0.27142376,118480.0,118470.0,0.1687959]
[1752673660749,0.3009849,118480.0,118470.0,0.1687959]
[1752673660949,0.36142376,118480.0,118470.0,0.71398235]
[1752673661152,0.3009849,118480.0,118470.0,0.71398235]
[1752673661547,0.3009849,118480.0,118470.0,0.1687959]
[1752673661753,0.1687959,118470.0,118460.0,0.2533984]
[1752673661958,0.1687959,118470.0,118460.0,0.7842502]
[1752673663057,0.1688102,118460.0,118450.0,0.0002]
[1752673663259,0.1688244,118450.0,118440.0,0.23713251]
[1752673663460,0.1688387,118440.0,118430.0,0.00442]
[1752673663655,1.05402515,118440.0,118430.0,0.61958]
[1752673663856,0.5088387,118440.0,118430.0,0.61958]
[1752673664161,0.5088387,118440.0,118430.0,0.79680497]
[1752673665059,0.5088387,118440.0,118430.0,0.79980497]
[1752673665661,0.5088387,118440.0,118430.0,0.79880497]
[1752673666459,0.5088387,118440.0,118430.0,0.790433]
[1752673667361,0.2532502,118450.0,118440.0,0.1688387]
[1752673667557,0.5832502,118450.0,118440.0,0.71402515]
[1752673667762,0.5832502,118450.0,118440.0,0.1688387]
[1752673667953,0.5832502,118450.0,118440.0,0.71402515]
[1752673668156,0.5832502,118450.0,118440.0,0.1688387]
[1752673668665,0.5410411,118450.0,118440.0,0.1688387]
[1752673668865,0.5410411,118450.0,118440.0,0.1698387]
[1752673669063,0.33,118450.0,118440.0,0.71502515]
[1752673669266,0.0844091,118460.0,118440.0,0.71502515]
[1752673669267,0.253231,118460.0,118450.0,0.1688245]
[1752673669562,0.253231,118460.0,118450.0,1.32925095]
[1752673669768,0.1688219,118460.0,118450.0,1.32925095]
[1752673670770,0.1698219,118460.0,118450.0,1.32925095]
[1752673671273,0.1698105,118460.0,118450.0,1.32925095]
[1752673671670,0.001,118460.0,118450.0,1.33347095]
[1752673671867,0.1698105,118460.0,118450.0,1.33347095]
[1752673672271,0.001,118460.0,118450.0,1.33347095]
[1752673672670,0.2110064,118470.0,118460.0,0.1688105]
[1752673672866,0.1688066,118470.0,118460.0,0.71399695]
[1752673673168,0.2531887,118480.0,118470.0,0.1687963]
[1752673673373,0.3131887,118480.0,118470.0,1.32910275]
[1752673673769,0.2531887,118480.0,118470.0,1.32910275]
[1752673673975,0.2109913,118480.0,118470.0,1.32910275]
[1752673674668,0.2531664,118490.0,118480.0,0.168782]
[1752673674870,0.65360526,118490.0,118480.0,0.71396845]
[1752673675278,0.5087794,118490.0,118480.0,0.71396845]
[1752673675576,0.34,118490.0,118480.0,0.71396845]
[1752673675874,0.31358426,118500.0,118490.0,0.1687678]
[1752673676073,0.31358426,118500.0,118490.0,1.32899425]
[1752673676972,0.06043886,118500.0,118490.0,1.32899425]
[1752673677172,0.22919246,118500.0,118490.0,1.32899425]
[1752673677370,0.06043886,118500.0,118490.0,1.32899425]
[1752673677572,0.002,118500.0,118490.0,1.32899425]
[1752673677870,0.002,118500.0,118490.0,1.42899425]
[1752673678076,0.1687263,118520.0,118510.0,0.295273]
[1752673678277,0.1687263,118520.0,118510.0,0.7837251]
[1752673678478,0.1687263,118520.0,118510.0,1.32891155]
[1752673679271,0.22916516,118520.0,118510.0,1.32891155]
[1752673679477,0.1687263,118520.0,118510.0,1.32891155]
[1752673679677,0.14479806,118530.0,118510.0,1.32891155]
[1752673679877,0.69351716,118530.0,118520.0,0.71391155]
[1752673680078,0.69351716,118530.0,118520.0,0.72223604]
[1752673680278,0.32351716,118530.0,118520.0,0.72223604]
[1752673680578,0.2108981,118530.0,118520.0,0.72223604]
[1752673681077,0.1687251,118520.0,118510.0,1.41768825]
[1752673681277,0.1687251,118520.0,118510.0,0.80248825]
[1752673681581,0.1687251,118520.0,118510.0,1.41732825]
[1752673682079,0.2560822,118530.0,118520.0,0.1687251]
[1752673682281,0.2139015,118530.0,118520.0,0.71391155]
[1752673682678,0.2109015,118530.0,118520.0,0.71391155]
[1752673682874,0.2129015,118530.0,118520.0,0.71391155]
[1752673683682,0.1707108,118530.0,118520.0,0.71391155]
[1752673685077,0.002,118530.0,118520.0,1.88071155]
[1752673686183,0.1707109,118530.0,118520.0,1.3355251]
[1752673686388,0.1687109,118530.0,118520.0,2.49719155]
[1752673687086,0.2530562,118540.0,118530.0,0.1687109]
[1752673687278,0.2530562,118540.0,118530.0,0.71389735]
[1752673687883,0.1687109,118530.0,118520.0,1.96525955]
[1752673688080,0.1687109,118530.0,118520.0,1.71198645]
[1752673688285,0.1687109,118530.0,118520.0,1.78272]
[1752673688781,0.1687109,118530.0,118520.0,1.9514451]
[1752673689078,0.1687109,118530.0,118520.0,2.49663155]
[1752673690183,0.06033886,118570.0,118520.0,2.03272]
[1752673690381,0.06033886,118570.0,118560.0,0.1686682]
[1752673690577,0.1686148,118600.0,118590.0,0.14942382]
[1752673690783,0.168608,118610.0,118600.0,0.1686113]
[1752673691083,0.1686113,118600.0,118590.0,0.2109745]
[1752673691287,0.1686113,118600.0,118590.0,0.8216999]
[1752673691483,0.1686113,118600.0,118590.0,1.26625364]
[1752673691782,0.5386113,118600.0,118590.0,0.72230719]
[1752673691978,0.4786113,118600.0,118590.0,0.89145269]
[1752673692178,0.1686113,118600.0,118590.0,0.8276755]
[1752673692380,0.5386113,118600.0,118590.0,0.8276755]
[1752673692584,0.5386113,118600.0,118590.0,0.65905]
[1752673692786,0.1686113,118600.0,118590.0,0.8276755]
[1752673692989,0.5486113,118600.0,118590.0,0.8290355]